[Event "*** SCC Grand Prix: Titled Tuesday Blitz"]
[Site "Chess.com"]
[Date "2020.09.08"]
[Round "3"]
[White "Grineva_Marianna"]
[Black "hellokostya"]
[Result "0-1"]
[WhiteElo "2223"]
[BlackElo "2494"]
[TimeControl "180+1"]
[EndTime "10:30:53 PDT"]
[Termination "hellokostya won on time"]

1. e4 {[%clk 0:03:00.9]} 1... e5 {[%clk 0:02:59.1]} 2. Nf3 {[%clk 0:03:00.5]}
2... Nc6 {[%clk 0:02:58.7]} 3. Bb5 {[%clk 0:02:59.8]} 3... a6 {[%clk 0:02:58.3]}
4. Ba4 {[%clk 0:03:00]} 4... d6 {[%clk 0:02:57.1]} 5. O-O {[%clk 0:02:59.7]}
5... Bd7 {[%clk 0:02:56]} 6. c3 {[%clk 0:02:58.5]} 6... g6 {[%clk 0:02:52.4]} 7.
d4 {[%clk 0:02:57]} 7... Bg7 {[%clk 0:02:50.8]} 8. d5 {[%clk 0:02:47.3]} 8...
Nce7 {[%clk 0:02:49.5]} 9. Nbd2 {[%clk 0:02:22.7]} 9... h6 {[%clk 0:02:45.6]}
10. Re1 {[%clk 0:02:17.4]} 10... f5 {[%clk 0:02:28.4]} 11. exf5 {[%clk
0:02:01.4]} 11... gxf5 {[%clk 0:02:26.6]} 12. Nf1 {[%clk 0:01:44.9]} 12... Nf6
{[%clk 0:02:22.3]} 13. c4 {[%clk 0:01:42.1]} 13... O-O {[%clk 0:02:19.2]} 14.
Bc2 {[%clk 0:01:38.3]} 14... f4 {[%clk 0:01:58.4]} 15. N1d2 {[%clk 0:01:31.6]}
15... Bg4 {[%clk 0:01:51.1]} 16. Ne4 {[%clk 0:01:25.9]} 16... Nf5 {[%clk
0:01:48.7]} 17. h3 {[%clk 0:01:22]} 17... Bh5 {[%clk 0:01:41.8]} 18. Qd3 {[%clk
0:01:10.9]} 18... Kh8 {[%clk 0:01:31.2]} 19. Neg5 {[%clk 0:00:45.7]} 19... e4
{[%clk 0:00:36]} 20. Nxe4 {[%clk 0:00:40.1]} 20... Bxf3 {[%clk 0:00:33.6]} 21.
gxf3 {[%clk 0:00:34.4]} 21... Nd7 {[%clk 0:00:29.8]} 22. Bxf4 {[%clk 0:00:31.6]}
22... Qh4 {[%clk 0:00:29.5]} 23. Bg3 {[%clk 0:00:26.8]} 23... Qxh3 {[%clk
0:00:29.5]} 24. Qf1 {[%clk 0:00:15.3]} 24... Qh5 {[%clk 0:00:28.5]} 25. Qg2
{[%clk 0:00:15]} 25... Nd4 {[%clk 0:00:24.5]} 26. Bd1 {[%clk 0:00:13.9]} 26...
Nxf3+ {[%clk 0:00:23.5]} 27. Bxf3 {[%clk 0:00:13.7]} 27... Rxf3 {[%clk
0:00:24.4]} 28. Nd2 {[%clk 0:00:13.3]} 28... Rf7 {[%clk 0:00:23.8]} 29. Re4
{[%clk 0:00:12.5]} 29... Rg8 {[%clk 0:00:23.4]} 30. Rae1 {[%clk 0:00:12]} 30...
Be5 {[%clk 0:00:22.6]} 31. Nf1 {[%clk 0:00:10.6]} 31... Qg6 {[%clk 0:00:19.3]}
32. Rh4 {[%clk 0:00:09.3]} 32... Bxg3 {[%clk 0:00:16.7]} 33. Nxg3 {[%clk
0:00:10.2]} 33... Ne5 {[%clk 0:00:16.6]} 34. Ree4 {[%clk 0:00:09.6]} 34... Nf3+
{[%clk 0:00:15.9]} 35. Kh1 {[%clk 0:00:09.7]} 35... Nxh4 {[%clk 0:00:15.7]} 36.
Rxh4 {[%clk 0:00:10.5]} 36... Kh7 {[%clk 0:00:15.6]} 37. Kg1 {[%clk 0:00:09.3]}
37... Qb1+ {[%clk 0:00:14.8]} 38. Kh2 {[%clk 0:00:09.4]} 38... Qg6 {[%clk
0:00:14.5]} 39. Qe4 {[%clk 0:00:08.7]} 39... Rgf8 {[%clk 0:00:12.7]} 40. Kg1
{[%clk 0:00:07.8]} 40... Qxe4 {[%clk 0:00:09.1]} 41. Nxe4 {[%clk 0:00:08.7]}
41... Rg7+ {[%clk 0:00:09.8]} 42. Kf1 {[%clk 0:00:08.4]} 42... Rf5 {[%clk
0:00:09]} 43. Ke2 {[%clk 0:00:07.9]} 43... Re7 {[%clk 0:00:08.4]} 44. f3 {[%clk
0:00:07.7]} 44... Kg6 {[%clk 0:00:07.5]} 45. Ke3 {[%clk 0:00:08.1]} 45... Rh5
{[%clk 0:00:07.3]} 46. Rg4+ {[%clk 0:00:08]} 46... Kf7 {[%clk 0:00:07.7]} 47.
Kd4 {[%clk 0:00:07.3]} 47... Rh2 {[%clk 0:00:07.2]} 48. Rf4+ {[%clk 0:00:07.5]}
48... Kg7 {[%clk 0:00:06.1]} 49. b3 {[%clk 0:00:07.9]} 49... Rxa2 {[%clk
0:00:05.6]} 50. Rg4+ {[%clk 0:00:07.7]} 50... Kf8 {[%clk 0:00:05.9]} 51. Ng3
{[%clk 0:00:08.1]} 51... Rb2 {[%clk 0:00:05.3]} 52. Nf5 {[%clk 0:00:07.9]} 52...
Rf7 {[%clk 0:00:05.8]} 53. Nxh6 {[%clk 0:00:06.6]} 53... Rxf3 {[%clk 0:00:05.4]}
54. Rh4 {[%clk 0:00:03]} 54... Rd2+ {[%clk 0:00:04.3]} 55. Ke4 {[%clk
0:00:03.3]} 55... Rff2 {[%clk 0:00:04.5]} 56. Nf5 {[%clk 0:00:03.3]} 56... Rde2+
{[%clk 0:00:04.5]} 57. Ne3 {[%clk 0:00:03.8]} 57... Rxe3+ {[%clk 0:00:03.7]} 58.
Kxe3 {[%clk 0:00:03.4]} 58... Rb2 {[%clk 0:00:04.6]} 59. Rf4+ {[%clk 0:00:03.2]}
59... Ke8 {[%clk 0:00:04.5]} 60. Kd4 {[%clk 0:00:03.8]} 60... Rxb3 {[%clk
0:00:04.5]} 61. Rh4 {[%clk 0:00:04.5]} 61... a5 {[%clk 0:00:04.4]} 62. Rh7
{[%clk 0:00:05]} 62... Kd8 {[%clk 0:00:04.3]} 63. Rh8+ {[%clk 0:00:05.3]} 63...
Kd7 {[%clk 0:00:04.6]} 64. Rh7+ {[%clk 0:00:05.9]} 64... Kd8 {[%clk 0:00:05.1]}
65. Rh8+ {[%clk 0:00:06.6]} 65... Ke7 {[%clk 0:00:05.4]} 66. Rh7+ {[%clk
0:00:07.3]} 66... Kf6 {[%clk 0:00:05.7]} 67. Rxc7 {[%clk 0:00:07.3]} 67... a4
{[%clk 0:00:06.6]} 68. Rc8 {[%clk 0:00:06.5]} 68... a3 {[%clk 0:00:06.7]} 69.
Ra8 {[%clk 0:00:07.1]} 69... Kf5 {[%clk 0:00:07]} 70. Ra7 {[%clk 0:00:04.3]}
70... b6 {[%clk 0:00:07]} 71. Ra6 {[%clk 0:00:03.4]} 71... Kf4 {[%clk
0:00:06.9]} 72. Ra8 {[%clk 0:00:02]} 72... Kf3 {[%clk 0:00:07.1]} 0-1

[Event "*** SCC Grand Prix: Titled Tuesday Blitz"]
[Site "Chess.com"]
[Date "2020.09.08"]
[Round "3"]
[White "Ba_clbaf_osed_ingo_3v21"]
[Black "Sankalp_Gupta2003"]
[Result "1/2-1/2"]
[WhiteElo "2530"]
[BlackElo "2741"]
[TimeControl "180+1"]
[EndTime "10:30:59 PDT"]
[Termination "Game drawn - insufficient material"]

1. Nf3 {[%clk 0:03:00.9]} 1... d5 {[%clk 0:02:59.8]} 2. c4 {[%clk 0:03:01.5]}
2... d4 {[%clk 0:02:59.9]} 3. b4 {[%clk 0:03:00.5]} 3... f6 {[%clk 0:03:00]} 4.
e3 {[%clk 0:03:00.1]} 4... e5 {[%clk 0:03:00.6]} 5. c5 {[%clk 0:03:00.6]} 5...
a5 {[%clk 0:02:51.8]} 6. Qa4+ {[%clk 0:02:57.1]} 6... Bd7 {[%clk 0:02:48.4]} 7.
b5 {[%clk 0:02:54.3]} 7... Bxc5 {[%clk 0:02:44.1]} 8. Bc4 {[%clk 0:02:53.7]}
8... Ne7 {[%clk 0:02:34.4]} 9. Ba3 {[%clk 0:02:49.9]} 9... Na6 {[%clk 0:02:32]}
10. exd4 {[%clk 0:02:45.4]} 10... exd4 {[%clk 0:02:31.7]} 11. O-O {[%clk
0:02:41.7]} 11... Nb4 {[%clk 0:02:12.7]} 12. d3 {[%clk 0:02:25.5]} 12... c6
{[%clk 0:02:07.9]} 13. Nbd2 {[%clk 0:02:07]} 13... cxb5 {[%clk 0:02:03.5]} 14.
Bxb5 {[%clk 0:02:07.9]} 14... Nec6 {[%clk 0:02:03.3]} 15. Rfe1+ {[%clk
0:02:06.6]} 15... Kf8 {[%clk 0:01:45.5]} 16. Bxb4 {[%clk 0:01:58.7]} 16... Bxb4
{[%clk 0:01:41.2]} 17. Re2 {[%clk 0:01:48.5]} 17... g6 {[%clk 0:01:33.9]} 18. a3
{[%clk 0:01:39.5]} 18... Bc3 {[%clk 0:01:32.1]} 19. Rc1 {[%clk 0:01:32]} 19...
Kg7 {[%clk 0:01:28.8]} 20. Ne4 {[%clk 0:01:31.3]} 20... Re8 {[%clk 0:01:09.3]}
21. Rec2 {[%clk 0:01:27.8]} 21... f5 {[%clk 0:00:57.6]} 22. Nxc3 {[%clk
0:01:26.2]} 22... dxc3 {[%clk 0:00:58.5]} 23. Rxc3 {[%clk 0:01:26.5]} 23... Qf6
{[%clk 0:00:59]} 24. d4 {[%clk 0:01:23.4]} 24... Qd6 {[%clk 0:00:36]} 25. d5
{[%clk 0:01:20.3]} 25... Qxd5 {[%clk 0:00:30.8]} 26. Rd3 {[%clk 0:01:14.4]}
26... Qf7 {[%clk 0:00:29.1]} 27. Rcd1 {[%clk 0:01:07.7]} 27... Re7 {[%clk
0:00:23.4]} 28. Ng5 {[%clk 0:00:35.6]} 28... Qf6 {[%clk 0:00:22]} 29. Nxh7
{[%clk 0:00:22.8]} 29... Kxh7 {[%clk 0:00:22.9]} 30. Rxd7 {[%clk 0:00:22.7]}
30... Re8 {[%clk 0:00:21]} 31. g3 {[%clk 0:00:17.1]} 31... Kg7 {[%clk
0:00:17.7]} 32. Kg2 {[%clk 0:00:13.9]} 32... Ne5 {[%clk 0:00:16.3]} 33. R7d6
{[%clk 0:00:12.3]} 33... Re6 {[%clk 0:00:12.3]} 34. R6d5 {[%clk 0:00:10.9]}
34... R8e7 {[%clk 0:00:10.9]} 35. h3 {[%clk 0:00:11.1]} 35... Nf7 {[%clk
0:00:10.4]} 36. Qf4 {[%clk 0:00:10.3]} 36... b6 {[%clk 0:00:10.1]} 37. Bd7
{[%clk 0:00:09.8]} 37... Re4 {[%clk 0:00:10]} 38. Qf3 {[%clk 0:00:08.7]} 38...
Ng5 {[%clk 0:00:09.5]} 39. Qd3 {[%clk 0:00:08.2]} 39... Re2 {[%clk 0:00:08.2]}
40. Rd6 {[%clk 0:00:06.6]} 40... Qb2 {[%clk 0:00:07.8]} 41. Rd2 {[%clk
0:00:05.8]} 41... Rxd2 {[%clk 0:00:07.5]} 42. Qxd2 {[%clk 0:00:06.7]} 42... Qxd2
{[%clk 0:00:04.2]} 43. Rxd2 {[%clk 0:00:07.6]} 43... Ne4 {[%clk 0:00:04.5]} 44.
Rd4 {[%clk 0:00:07.5]} 44... Kf6 {[%clk 0:00:04.2]} 45. Bb5 {[%clk 0:00:07.8]}
45... Ke5 {[%clk 0:00:04.3]} 46. Rd8 {[%clk 0:00:06.5]} 46... Nd6 {[%clk
0:00:04]} 47. Bc6 {[%clk 0:00:06.2]} 47... Rc7 {[%clk 0:00:03.8]} 48. Bf3 {[%clk
0:00:05.1]} 48... Rc3 {[%clk 0:00:03.8]} 49. Rg8 {[%clk 0:00:04.9]} 49... Rxa3
{[%clk 0:00:04.1]} 50. Rxg6 {[%clk 0:00:05.3]} 50... b5 {[%clk 0:00:04.7]} 51.
h4 {[%clk 0:00:05.6]} 51... b4 {[%clk 0:00:05]} 52. h5 {[%clk 0:00:06]} 52... b3
{[%clk 0:00:05.7]} 53. h6 {[%clk 0:00:06.3]} 53... b2 {[%clk 0:00:06.2]} 54. h7
{[%clk 0:00:06.6]} 54... Nf7 {[%clk 0:00:02.8]} 55. Rb6 {[%clk 0:00:06.9]} 55...
Ra2 {[%clk 0:00:03.1]} 56. Rb7 {[%clk 0:00:07.1]} 56... Nh8 {[%clk 0:00:02.9]}
57. Be2 {[%clk 0:00:06.2]} 57... b1=Q {[%clk 0:00:02.9]} 58. f4+ {[%clk
0:00:04.7]} 58... Kf6 {[%clk 0:00:02.7]} 59. Rxb1 {[%clk 0:00:04.8]} 59... Rxe2+
{[%clk 0:00:03.3]} 60. Kf3 {[%clk 0:00:05.7]} 60... Re7 {[%clk 0:00:04.1]} 61.
Rb5 {[%clk 0:00:05.2]} 61... Rxh7 {[%clk 0:00:04.1]} 62. Rxa5 {[%clk 0:00:05.5]}
62... Rg7 {[%clk 0:00:04.5]} 63. Ra6+ {[%clk 0:00:05.6]} 63... Kf7 {[%clk
0:00:04.9]} 64. Ra7+ {[%clk 0:00:05.9]} 64... Kg6 {[%clk 0:00:05.5]} 65. Rxg7+
{[%clk 0:00:06.2]} 65... Kxg7 {[%clk 0:00:06.4]} 66. g4 {[%clk 0:00:07.1]} 66...
fxg4+ {[%clk 0:00:06.5]} 67. Kxg4 {[%clk 0:00:08]} 67... Kf6 {[%clk 0:00:07.3]}
68. f5 {[%clk 0:00:08.9]} 68... Nf7 {[%clk 0:00:08.2]} 69. Kg3 {[%clk
0:00:09.4]} 69... Nd6 {[%clk 0:00:09.1]} 70. Kh2 {[%clk 0:00:09.5]} 70... Nxf5
{[%clk 0:00:10]} 1/2-1/2

[Event "*** SCC Grand Prix: Titled Tuesday Blitz"]
[Site "Chess.com"]
[Date "2020.09.08"]
[Round "3"]
[White "JonahWillow"]
[Black "Tekushka"]
[Result "1-0"]
[WhiteElo "2693"]
[BlackElo "2411"]
[TimeControl "180+1"]
[EndTime "10:30:59 PDT"]
[Termination "JonahWillow won on time"]

1. e4 {[%clk 0:03:00.9]} 1... e6 {[%clk 0:03:00.3]} 2. d4 {[%clk 0:03:01.2]}
2... d5 {[%clk 0:03:00.6]} 3. Nd2 {[%clk 0:03:02.1]} 3... Be7 {[%clk 0:03:00.3]}
4. e5 {[%clk 0:03:01.6]} 4... c5 {[%clk 0:02:59.7]} 5. c3 {[%clk 0:03:01.7]}
5... cxd4 {[%clk 0:02:56.4]} 6. cxd4 {[%clk 0:03:02.6]} 6... Qb6 {[%clk
0:02:56.6]} 7. Ngf3 {[%clk 0:02:56.5]} 7... Nc6 {[%clk 0:02:49.2]} 8. Bd3 {[%clk
0:02:53.2]} 8... Nxd4 {[%clk 0:02:44.3]} 9. Nxd4 {[%clk 0:02:54.1]} 9... Qxd4
{[%clk 0:02:44.4]} 10. Qe2 {[%clk 0:02:52.3]} 10... Bd7 {[%clk 0:02:31]} 11. Nb3
{[%clk 0:02:48.1]} 11... Bb4+ {[%clk 0:02:27.6]} 12. Kf1 {[%clk 0:02:44.8]}
12... Qh4 {[%clk 0:02:23.4]} 13. g3 {[%clk 0:02:25.7]} 13... Qh3+ {[%clk
0:02:21.2]} 14. Kg1 {[%clk 0:02:26.1]} 14... Nh6 {[%clk 0:02:14.4]} 15. Bf4
{[%clk 0:01:13.4]} 15... O-O {[%clk 0:02:08.7]} 16. f3 {[%clk 0:01:11]} 16... f6
{[%clk 0:01:58.8]} 17. Qg2 {[%clk 0:00:57.8]} 17... Qxg2+ {[%clk 0:01:36.1]} 18.
Kxg2 {[%clk 0:00:58.7]} 18... fxe5 {[%clk 0:01:36.2]} 19. Bxe5 {[%clk
0:00:58.1]} 19... Nf7 {[%clk 0:01:35.7]} 20. Bd4 {[%clk 0:00:58.4]} 20... e5
{[%clk 0:01:32.8]} 21. Bc5 {[%clk 0:00:58.7]} 21... Bxc5 {[%clk 0:01:29.4]} 22.
Nxc5 {[%clk 0:00:59.6]} 22... Bc6 {[%clk 0:01:28.4]} 23. Ne6 {[%clk 0:00:58.6]}
23... Rfc8 {[%clk 0:01:26.5]} 24. Rhe1 {[%clk 0:00:58.3]} 24... Bd7 {[%clk
0:01:22.4]} 25. Bf5 {[%clk 0:00:54.1]} 25... g6 {[%clk 0:01:19.3]} 26. Bh3
{[%clk 0:00:51.1]} 26... Rc6 {[%clk 0:01:04.6]} 27. Nf4 {[%clk 0:00:47.7]} 27...
Rc2+ {[%clk 0:00:54.8]} 28. Kg1 {[%clk 0:00:47]} 28... Bxh3 {[%clk 0:00:52.4]}
29. Nxh3 {[%clk 0:00:47.1]} 29... Rac8 {[%clk 0:00:51.2]} 30. b3 {[%clk
0:00:44.8]} 30... R8c3 {[%clk 0:00:49.7]} 31. f4 {[%clk 0:00:39.3]} 31... e4
{[%clk 0:00:47.1]} 32. Nf2 {[%clk 0:00:39.5]} 32... Rd2 {[%clk 0:00:35.7]} 33.
Rad1 {[%clk 0:00:36.4]} 33... Rcc2 {[%clk 0:00:35.8]} 34. Rxd2 {[%clk
0:00:34.5]} 34... Rxd2 {[%clk 0:00:36]} 35. Rc1 {[%clk 0:00:31.7]} 35... e3
{[%clk 0:00:34.3]} 36. Ng4 {[%clk 0:00:28.3]} 36... d4 {[%clk 0:00:34.1]} 37.
Kf1 {[%clk 0:00:20.3]} 37... Rxa2 {[%clk 0:00:29.8]} 38. Rc8+ {[%clk 0:00:17.3]}
38... Kg7 {[%clk 0:00:29.6]} 39. Rc7 {[%clk 0:00:18.2]} 39... e2+ {[%clk
0:00:27.7]} 40. Kf2 {[%clk 0:00:15.7]} 40... d3 {[%clk 0:00:25.1]} 41. Ne5
{[%clk 0:00:15.9]} 41... Ra1 {[%clk 0:00:24.1]} 42. Nxd3 {[%clk 0:00:12.3]}
42... Kf6 {[%clk 0:00:17.1]} 43. Rxb7 {[%clk 0:00:09.8]} 43... Nd6 {[%clk
0:00:15.9]} 44. Rd7 {[%clk 0:00:07.1]} 44... e1=Q+ {[%clk 0:00:10.8]} 45. Nxe1
{[%clk 0:00:07]} 45... Ne4+ {[%clk 0:00:11.1]} 46. Ke2 {[%clk 0:00:06.4]} 46...
Nc3+ {[%clk 0:00:11.2]} 47. Kf1 {[%clk 0:00:05.6]} 47... Rb1 {[%clk 0:00:10]}
48. Rxa7 {[%clk 0:00:05.2]} 48... h5 {[%clk 0:00:09.6]} 49. Ra6+ {[%clk
0:00:04.8]} 49... Kf5 {[%clk 0:00:09.3]} 50. h3 {[%clk 0:00:05.6]} 50... Ke4
{[%clk 0:00:09.6]} 51. Kf2 {[%clk 0:00:05.6]} 51... Rb2+ {[%clk 0:00:08.7]} 52.
Kf1 {[%clk 0:00:05.9]} 52... Rb1 {[%clk 0:00:09]} 53. Re6+ {[%clk 0:00:06.4]}
53... Kd5 {[%clk 0:00:07.9]} 54. Re8 {[%clk 0:00:06.2]} 54... Rxb3 {[%clk
0:00:07.1]} 55. Kf2 {[%clk 0:00:06.8]} 55... Rb1 {[%clk 0:00:07.1]} 56. Nd3
{[%clk 0:00:06.8]} 56... Kd4 {[%clk 0:00:06.9]} 57. Ne5 {[%clk 0:00:06.7]} 57...
Rb2+ {[%clk 0:00:06.5]} 58. Kf3 {[%clk 0:00:07.3]} 58... Rb3 {[%clk 0:00:06.3]}
59. Rd8+ {[%clk 0:00:07]} 59... Kc5 {[%clk 0:00:05.7]} 60. Nxg6 {[%clk
0:00:07.6]} 60... Nd5+ {[%clk 0:00:05.2]} 61. Ke4 {[%clk 0:00:08]} 61... Re3+
{[%clk 0:00:04.9]} 62. Kf5 {[%clk 0:00:08.4]} 62... Rxg3 {[%clk 0:00:04.9]} 63.
Ne5 {[%clk 0:00:07.5]} 63... Rxh3 {[%clk 0:00:04.5]} 64. Rh8 {[%clk 0:00:07.3]}
64... Ne3+ {[%clk 0:00:03.2]} 65. Ke6 {[%clk 0:00:07.1]} 65... Ng4 {[%clk
0:00:02.8]} 66. Rc8+ {[%clk 0:00:05.8]} 66... Kd4 {[%clk 0:00:02]} 67. Ng6
{[%clk 0:00:06.7]} 67... Ke4 {[%clk 0:00:02.4]} 68. f5 {[%clk 0:00:06.9]} 68...
Ke3 {[%clk 0:00:02.5]} 69. f6 {[%clk 0:00:07.2]} 69... Nxf6 {[%clk 0:00:02.3]}
70. Rc3+ {[%clk 0:00:07.4]} 70... Ke4 {[%clk 0:00:02.2]} 71. Rxh3 {[%clk
0:00:08.3]} 71... Ng4 {[%clk 0:00:02.3]} 72. Rxh5 {[%clk 0:00:08.3]} 1-0

[Event "*** SCC Grand Prix: Titled Tuesday Blitz"]
[Site "Chess.com"]
[Date "2020.09.08"]
[Round "3"]
[White "Alexander_Zubov"]
[Black "Elegance_Riks"]
[Result "1-0"]
[WhiteElo "2962"]
[BlackElo "2611"]
[TimeControl "180+1"]
[EndTime "10:31:02 PDT"]
[Termination "Alexander_Zubov won by resignation"]

1. d4 {[%clk 0:03:00.9]} 1... d5 {[%clk 0:02:59.2]} 2. c4 {[%clk 0:02:59.9]}
2... e6 {[%clk 0:02:59.7]} 3. Nf3 {[%clk 0:02:59.6]} 3... c5 {[%clk 0:02:57.5]}
4. cxd5 {[%clk 0:02:59.1]} 4... exd5 {[%clk 0:02:57.9]} 5. Nc3 {[%clk 0:02:59]}
5... Nc6 {[%clk 0:02:58.2]} 6. Bf4 {[%clk 0:02:57.7]} 6... Nf6 {[%clk
0:02:49.8]} 7. e3 {[%clk 0:02:56.2]} 7... c4 {[%clk 0:02:50.1]} 8. a3 {[%clk
0:02:54.9]} 8... h6 {[%clk 0:02:43.1]} 9. Be2 {[%clk 0:02:50]} 9... Bd6 {[%clk
0:02:43.2]} 10. Ne5 {[%clk 0:02:45.3]} 10... O-O {[%clk 0:02:42.5]} 11. O-O
{[%clk 0:02:42.1]} 11... Re8 {[%clk 0:02:42.4]} 12. Nxc6 {[%clk 0:02:41.4]}
12... bxc6 {[%clk 0:02:42.7]} 13. Bxd6 {[%clk 0:02:41.7]} 13... Qxd6 {[%clk
0:02:43]} 14. b3 {[%clk 0:02:42.2]} 14... cxb3 {[%clk 0:02:20.8]} 15. Qxb3
{[%clk 0:02:41.4]} 15... Be6 {[%clk 0:02:11.4]} 16. Qb4 {[%clk 0:02:35.4]} 16...
Qc7 {[%clk 0:02:01.4]} 17. Rfc1 {[%clk 0:02:29.7]} 17... Rab8 {[%clk 0:02:00.6]}
18. Qa4 {[%clk 0:02:00.2]} 18... Rec8 {[%clk 0:01:59.6]} 19. Ba6 {[%clk
0:01:52]} 19... Rd8 {[%clk 0:01:46.5]} 20. h3 {[%clk 0:01:49.2]} 20... Rb6
{[%clk 0:01:43.2]} 21. Bf1 {[%clk 0:01:46.9]} 21... Rdb8 {[%clk 0:01:42]} 22.
Qa5 {[%clk 0:01:41.7]} 22... Nd7 {[%clk 0:01:16.7]} 23. Nxd5 {[%clk 0:01:35.5]}
23... Bxd5 {[%clk 0:01:13.5]} 24. Qxd5 {[%clk 0:01:35.4]} 24... Nf6 {[%clk
0:01:11.9]} 25. Qf3 {[%clk 0:01:33]} 25... Qd6 {[%clk 0:01:08.8]} 26. a4 {[%clk
0:01:25.9]} 26... Nd5 {[%clk 0:01:07.8]} 27. Bc4 {[%clk 0:01:23.1]} 27... Rb2
{[%clk 0:01:06]} 28. g3 {[%clk 0:01:20.4]} 28... a5 {[%clk 0:00:59.6]} 29. Bxd5
{[%clk 0:01:18.7]} 29... cxd5 {[%clk 0:00:38.1]} 30. Rc5 {[%clk 0:01:16.8]}
30... Qe6 {[%clk 0:00:38.4]} 31. Kg2 {[%clk 0:01:11.3]} 31... R8b3 {[%clk
0:00:38.3]} 32. Re1 {[%clk 0:01:05.2]} 32... Ra3 {[%clk 0:00:30.6]} 33. Rxa5
{[%clk 0:00:59.2]} 33... Raa2 {[%clk 0:00:30.9]} 34. Rf1 {[%clk 0:00:59]} 34...
Re2 {[%clk 0:00:31]} 35. Rxd5 {[%clk 0:00:56.6]} 35... Rxe3 {[%clk 0:00:28.2]}
36. Qf5 {[%clk 0:00:38.7]} 36... Qxf5 {[%clk 0:00:27.1]} 37. Rxf5 {[%clk
0:00:39.6]} 37... Rd3 {[%clk 0:00:26.9]} 38. Re1 {[%clk 0:00:37.5]} 38... f6
{[%clk 0:00:27]} 39. a5 {[%clk 0:00:30.8]} 39... Rxd4 {[%clk 0:00:26.7]} 40. Re7
{[%clk 0:00:31.3]} 40... Rda4 {[%clk 0:00:20.2]} 41. Ra7 {[%clk 0:00:31]} 41...
Rb4 {[%clk 0:00:20.7]} 42. h4 {[%clk 0:00:29.6]} 42... Kh7 {[%clk 0:00:19.7]}
43. h5 {[%clk 0:00:25.1]} 43... Rbb2 {[%clk 0:00:19.5]} 44. Rf4 {[%clk
0:00:20.6]} 44... Rb5 {[%clk 0:00:19.4]} 45. Rg4 {[%clk 0:00:18.9]} 45... Rg5
{[%clk 0:00:17.1]} 46. Rxg5 {[%clk 0:00:19.1]} 46... hxg5 {[%clk 0:00:18]} 47.
g4 {[%clk 0:00:19.4]} 47... Kh6 {[%clk 0:00:17.3]} 48. Ra6 {[%clk 0:00:16.2]}
48... Kh7 {[%clk 0:00:17.2]} 49. Kg3 {[%clk 0:00:15.9]} 49... Ra4 {[%clk
0:00:17.7]} 50. f3 {[%clk 0:00:16.5]} 50... Kh6 {[%clk 0:00:18.3]} 51. Kf2
{[%clk 0:00:16.1]} 51... Kh7 {[%clk 0:00:18.5]} 52. Ra8 {[%clk 0:00:15.6]} 52...
Ra3 {[%clk 0:00:18.2]} 53. Ke2 {[%clk 0:00:15.6]} 53... g6 {[%clk 0:00:18.8]}
54. hxg6+ {[%clk 0:00:15.1]} 54... Kxg6 {[%clk 0:00:19.4]} 55. a6 {[%clk
0:00:15]} 55... Kf7 {[%clk 0:00:19.7]} 56. Ra7+ {[%clk 0:00:10.8]} 56... Kg6
{[%clk 0:00:19.9]} 57. Ra8 {[%clk 0:00:10.7]} 57... Kg7 {[%clk 0:00:20.2]} 58.
Kf2 {[%clk 0:00:08.3]} 58... Kh7 {[%clk 0:00:20]} 59. Ke2 {[%clk 0:00:04.3]}
59... Kg7 {[%clk 0:00:20.3]} 60. Kd2 {[%clk 0:00:03]} 60... Rxf3 {[%clk
0:00:20.4]} 61. Rc8 {[%clk 0:00:03.6]} 61... Ra3 {[%clk 0:00:20.4]} 62. Rc6
{[%clk 0:00:04]} 62... Kf7 {[%clk 0:00:20.7]} 63. Kc2 {[%clk 0:00:03.9]} 63...
Ke7 {[%clk 0:00:21]} 64. Kb2 {[%clk 0:00:04.4]} 64... Ra4 {[%clk 0:00:21.6]} 65.
Kb3 {[%clk 0:00:04.9]} 65... Ra1 {[%clk 0:00:20.9]} 66. Kb4 {[%clk 0:00:05.3]}
66... Rb1+ {[%clk 0:00:17.2]} 67. Kc5 {[%clk 0:00:05]} 67... Ra1 {[%clk
0:00:17.3]} 68. Kb6 {[%clk 0:00:05.1]} 68... Rb1+ {[%clk 0:00:17.8]} 69. Kc7
{[%clk 0:00:05.6]} 69... Ra1 {[%clk 0:00:18.1]} 70. Kb7 {[%clk 0:00:05.9]} 70...
Rb1+ {[%clk 0:00:18.4]} 71. Rb6 {[%clk 0:00:06.2]} 71... Ra1 {[%clk 0:00:18.5]}
72. a7 {[%clk 0:00:06.5]} 72... f5 {[%clk 0:00:14.2]} 73. gxf5 {[%clk
0:00:06.4]} 73... g4 {[%clk 0:00:14.8]} 74. a8=Q {[%clk 0:00:06.7]} 1-0